Cogmind - Beta 12 @@@ ROGUE MODE // 2023.09.20 @ 10:43:56 Player: david Result: Destroyed by D-53 Grenadier with Mini Grenade Launcher Performance ------------- Evolutions (0) 0 Regions Visited (4) 800 Robots Destroyed (23) 115 Value Destroyed (310) 310 Prototype IDs (23) 460 Alien Tech Used (0) 0 Bonus (374) 374 TOTAL SCORE: 2059 Bonus ------- Follower Combat Kills 74 Aligned with FarCom 300 Cogmind --------- Core Integrity 0/250 Matter 198/300 Energy 41/100 System Corruption 1% Temperature Cool (0) Movement Walking (120) Location -9/Mines Parts ------- > --- POWER (1) -------- (None) > --- PROPULSION (2) --- Aluminum Leg > --- UTILITY (2) ------ Improved Heat Sink Improved Targeting Computer > --- WEAPON (2) ------- Beamcaster Makeshift Axe > --- INVENTORY (5) ---- Light Armor Plating Trap Reconfigurator Peak State ------------ > --- POWER ------------ Light Nuclear Core > --- PROPULSION ------- Aluminum Leg Aluminum Leg > --- UTILITY ---------- Improved Targeting Computer Trap Reconfigurator > --- WEAPON ----------- EM Pulse Gun Beamcaster > --- INVENTORY -------- Aluminum Leg Aluminum Leg Improved Heat Sink Light Armor Plating Rocket Launcher [Rating: 22] Favorites ----------- Power Light Nuclear Core Engine Ion Engine Power Core Light Nuclear Core Propulsion Aluminum Leg Leg Aluminum Leg Utility Improved Targeting Computer Device Terrain Scanner Storage Small Storage Unit Processor Improved Targeting Computer Protection Light Armor Plating Weapon EM Pulse Gun Energy Gun EM Pulse Gun Ballistic Gun Light Assault Rifle Ballistic Cannon Light Cannon Launcher Rocket Launcher Impact Weapon Hammer Slashing Weapon Makeshift Axe Special Melee Weapon Datajack Build | -11 -10 -10 -10 -9 ------- Run | Jun Mat Min Exi Min Slots Evolved . | . . . . . Power . | . . . . . Propulsion . | . . . . . Utility . | . . . . . Weapon . | . . . . . Parts Attached 38 | 5 23 3 1 6 Power 3 | 1 2 . . . Engine 2 | 1 1 . . . Core 1 | . 1 . . . Reactor . | . . . . . Propulsion 6 | 2 2 . . 2 Treads . | . . . . . Leg 6 | 2 2 . . 2 Wheel . | . . . . . Hover . | . . . . . Flight . | . . . . . Utility 15 | 1 12 . 1 1 Device 6 | . 4 . 1 1 Storage 5 | 1 4 . . . Processor 3 | . 3 . . . Hackware . | . . . . . Protection 1 | . 1 . . . Artifact . | . . . . . Weapon 14 | 1 7 3 . 3 Energy Gun 8 | 1 4 2 . 1 Energy Cannon . | . . . . . Ballistic Gun 1 | . 1 . . . Ballistic Cannon 1 | . . 1 . . Launcher 1 | . . . . 1 Special Weapon . | . . . . . Impact Weapon 1 | . 1 . . . Slashing Weapon 1 | . . . . 1 Piercing Weapon . | . . . . . Special Melee Weapon 1 | . 1 . . . Unidentified Prototypes 1 | . . . 1 . Corrupted Parts 1 | . 1 . . . System Corruption 1 | . 1 . . . Parts Lost 8 | . 2 . . 6 Power 1 | . . . . 1 Propulsion 3 | . . . . 3 Utility . | . . . . . Weapon 4 | . 2 . . 2 Highest Loss Streak 6 | . 1 . . 6 To Critical Strikes . | . . . . . Average Slot Usage (%) 97 | . 96 100 100 92 Engine 4 | . 9 . . . Core 9 | . 4 14 14 11 Leg 27 | . 27 28 28 24 Device 7 | . 12 . 1 14 Storage 1 | . 3 . . . Processor 12 | . 9 14 14 14 Protection 6 | . . 14 12 . Energy Gun 25 | . 22 28 28 24 Naked Turns . | . . . . . Heaviest Build 16 | 12 16 15 15 13 Greatest Support 20 | 20 20 20 20 20 Greatest Overweight (x) 1 | . . . . 1 Average Overweight (x) . | . . . . . Largest Inventory Capacity 25 | 8 25 5 5 5 Average Capacity 5 | 6 5 5 5 5 Most Carried 8 | 4 8 5 5 5 Average Carried 3 | . 2 4 4 4 Final Capacity 8 | 8 5 5 5 5 Final Carried 5 | . 5 5 5 2 Class Distribution -------------------- 92% | Mutant 7% | Scavenger-Mutant Dominant Class ---------------- Mutant | -10/Materials Mutant | -10/Mines Mutant | -10/Exiles Mutant | -9/Mines Resources | -11 -10 -10 -10 -9 ----------- Run | Jun Mat Min Exi Min Matter Collected 535 | 127 287 102 . 19 Remotely . | . . . . . Salvage Created 625 | . 584 20 . 21 Parts 52 | . 52 . . . Haulers Intercepted 2 | . 2 . . . Recyclers Shooed 1 | . 1 . . . Parts Field Recycled . | . . . . . Retrieved Matter . | . . . . . Parts Self-Destructed . | . . . . . Prevented . | . . . . . Kills | -11 -10 -10 -10 -9 ------- Run | Jun Mat Min Exi Min Combat Hostiles Destroyed 25 | . 9 1 . 15 Guns 8 | . 7 1 . . AOE 17 | . 2 . . 15 Classes Destroyed 8 | . 7 . . 1 Worker 2 | . 2 . . . Builder 5 | . 5 . . . Hauler 2 | . 2 . . . Operator 1 | . 1 . . . Watcher 3 | . 3 . . . Swarmer 7 | . 6 1 . . Grunt 3 | . 3 . . . Assembled 15 | . . . . 15 Best Kill Streak 15 | . 4 1 . 15 Combat Bots Only 15 | . 4 1 . 15 Max Kills in Single Turn 7 | . 2 1 . 7 Gunslinging . | . . . . . Exploded 7 | . 2 . . 7 Melee . | . . . . . Uniques/NPCs Destroyed . | . . . . . Combat | -11 -10 -10 -10 -9 -------- Run | Jun Mat Min Exi Min Damage Taken 967 | . 274 71 . 622 Core 262 | . 36 13 . 213 Absorbed by Shields . | . . . . . Core Remaining (%) 100 | 100 . . . . Volleys Fired 77 | . 63 6 . 8 Largest 2 | . 2 2 . 2 Hottest 115 | . 85 80 . 115 Shots Fired 126 | . 104 12 . 10 Gun 120 | . 104 12 . 4 Cannon . | . . . . . Launcher 6 | . . . . 6 Special . | . . . . . Kinetic 10 | . 10 . . . Thermal 8 | . 6 . . 2 Explosive 6 | . . . . 6 Electromagnetic 102 | . 88 12 . 2 Robot Hit Streak 7 | . 7 5 . 3 Robot Miss Streak 6 | . 6 3 . 2 Penetration Max . | . . . . . Secondary Targets 2 | . 2 . . . Max Gunslinging Chain 1 | . 1 . . . Shots Hit Robots 67 | . 57 6 . 4 Core Hits 59 | . 26 2 . 31 Critical Kills . | . . . . . Critical Parts Destroyed . | . . . . . Critical Strikes 1 | . 1 . . . Corrupt 1 | . 1 . . . Melee Attacks 4 | . 4 . . . Impact 2 | . 2 . . . Slashing . | . . . . . Piercing . | . . . . . Sneak Attacks 3 | . 3 . . . Combat Hostiles . | . . . . . Follow-up Attacks . | . . . . . Damage Inflicted 2020 | . 963 84 . 973 Guns 901 | . 772 74 . 55 Cannons . | . . . . . Explosions 1041 | . 123 . . 918 Melee 68 | . 68 . . . Ramming 10 | . . 10 . . Kinetic 40 | . 40 . . . Thermal 211 | . 167 . . 44 Explosive 918 | . . . . 918 Electromagnetic 773 | . 688 74 . 11 Impact 68 | . 68 . . . Slashing . | . . . . . Piercing . | . . . . . Highest Corruption 1 | . 1 1 1 1 Average Corruption 1 | . 1 1 1 1 Corruption Purged . | . . . . . Corruption Blocked . | . . . . . Effects 14 | . 5 5 3 1 Message Errors 2 | . 1 1 . . Matter Fused 4 | . . 2 1 1 Heat Flow Errors 1 | . 1 . . . Energy Discharges 2 | . 1 . 1 . Data Loss (minor) 2 | . 1 1 . . Data Loss (major) 3 | . 1 1 1 . Overload Shots . | . . . . . Overflow Damage 33 | . 10 . . 23 Projectiles . | . . . . . Explosions 23 | . . . . 23 Melee 10 | . 10 . . . Knockbacks . | . . . . . Impact . | . . . . . Kinetic . | . . . . . Secondary . | . . . . . Self-Inflicted Damage 126 | . 39 . . 87 Shots 4 | . 1 . . 3 Rammed . | . . . . . Targets Rammed 2 | . . 2 . . Kicked 2 | . . 2 . . Crushed . | . . . . . Highest Temperature 240 | . 240 165 . 84 Average Temperature 52 | . 48 75 . 38 Received Heat Transfer 165 | . 36 9 . 120 Siege Activations . | . . . . . Robots Corrupted . | . . . . . Combat Hostiles . | . . . . . Parts Fried 5 | . 5 . . . Impact Corruptions 1 | . 1 . . . Robots Melted . | . . . . . Combat Hostiles . | . . . . . Parts Melted . | . . . . . Heat Transferred 335 | . 261 . . 74 Parts Sabotaged . | . . . . . Parts Stolen . | . . . . . Parts Stripped . | . . . . . Power Chain Reactions 3 | . 3 . . . Missiles Intercepted . | . . . . . Alert | -11 -10 -10 -10 -9 ------- Run | Jun Mat Min Exi Min Peak Influence 251 | . 251 207 . 13 Initial 73 | . . 73 . . Average 71 | . 73 105 . . Maximum Alert Level 1 | . 1 1 . . Low Security (%) 93 | 100 96 81 . 100 Level 1 6 | . 3 18 . . Level 2 . | . . . . . Level 3 . | . . . . . Level 4 . | . . . . . Level 5 . | . . . . . High Security . | . . . . . Max Security . | . . . . . Squads Dispatched 1 | . 1 . . . Investigation . | . . . . . Extermination . | . . . . . Reinforcement 1 | . 1 . . . Assault . | . . . . . Garrison . | . . . . . Intercept . | . . . . . Searches Triggered . | . . . . . Construction Impeded . | . . . . . Haulers Reinforced . | . . . . . Active Scanning Responses . | . . . . . Cargo Convoy Interrupts . | . . . . . Stealth | -11 -10 -10 -10 -9 --------- Run | Jun Mat Min Exi Min Distress Signals 1 | . 1 . . . Communications Jammed . | . . . . . Distress Signals . | . . . . . Times Spotted 47 | . 20 6 . 21 Peak Tracking Total 15 | . 5 3 . 15 Tactical Retreats 1 | . 1 . . . Traps | -11 -10 -10 -10 -9 ------- Run | Jun Mat Min Exi Min Traps Triggered 1 | . 1 . . . Indirectly . | . . . . . Trap Hack Attempts . | . . . . . Triggered . | . . . . . Disarmed . | . . . . . Reprogrammed . | . . . . . Reused . | . . . . . Traps Extracted . | . . . . . Installed . | . . . . . Triggered . | . . . . . Exploded 1 | . . . 1 . Machines | -11 -10 -10 -10 -9 ---------- Run | Jun Mat Min Exi Min Machines Disabled 3 | . 3 . . . Max in Single Turn 1 | . 1 . . . Machines Repaired . | . . . . . Machines Sabotaged . | . . . . . Overloaded Fab Kills . | . . . . . Hacking | -11 -10 -10 -10 -9 --------- Run | Jun Mat Min Exi Min Machines Accessed 9 | . 4 . 5 . Terminals 3 | . 3 . . . Fabricators . | . . . . . Repair Stations . | . . . . . Recycling Units 1 | . 1 . . . Scanalyzers . | . . . . . Garrison Access . | . . . . . Total Hacks 57 | . 7 . 50 . Successful 53 | . 3 . 50 . Failed 4 | . 4 . . . Catastrophic . | . . . . . Database Lockouts . | . . . . . Manual 2 | . . . 2 . Terminals 5 | . 5 . . . Fabricators . | . . . . . Repair Stations . | . . . . . Recycling Units 2 | . 2 . . . Scanalyzers . | . . . . . Garrison Access . | . . . . . Terminal Hacks 52 | . 2 . 50 . Record 50 | . 1 . 49 . Locate Traps 1 | . 1 . . . EX-Prototype ID Bank 1 | . . . 1 . Fabricator Hacks . | . . . . . Repair Station Hacks . | . . . . . Recycling Unit Hacks 1 | . 1 . . . Retrieve Components 1 | . 1 . . . Scanalyzer . | . . . . . Garrison Access Hacks . | . . . . . Unauthorized Hacks . | . . . . . Terminals . | . . . . . Fabricators . | . . . . . Repair Stations . | . . . . . Recycling Units . | . . . . . Scanalyzers . | . . . . . Garrison Access . | . . . . . Data Cores Recovered . | . . . . . Used . | . . . . . Hacking Detections 3 | . 3 . . . Full Trace Events . | . . . . . Feedback Events . | . . . . . Feedback Blocked . | . . . . . Robot Schematics Acquired . | . . . . . Robots Built . | . . . . . Authchips . | . . . . . Time . | . . . . . Total Robot Build Rating . | . . . . . Part Schematics Acquired . | . . . . . Parts Built . | . . . . . Authchips . | . . . . . Time . | . . . . . Total Part Build Rating . | . . . . . Parts Repaired . | . . . . . Time . | . . . . . Parts Recycled . | . . . . . Recycled Matter . | . . . . . Retrieved Matter . | . . . . . Retrieved Components 6 | . 6 . . . Parts Scanalyzed . | . . . . . Part Schematics Acquired . | . . . . . Parts Damaged . | . . . . . Bothacking | -11 -10 -10 -10 -9 ------------ Run | Jun Mat Min Exi Min Used RIF Installer . | . . . . . Robots Hacked . | . . . . . Non-combat . | . . . . . Combat . | . . . . . Robot Hacks Applied . | . . . . . Relay Couplers Released . | . . . . . Fabnet Peak Effective % . | . . . . . Robots Rewired . | . . . . . Allies Hacked . | . . . . . Hacks Repelled . | . . . . . Allies | -11 -10 -10 -10 -9 -------- Run | Jun Mat Min Exi Min Total Allies 2 | . . 2 . . Largest Group 2 | . . 2 2 . Highest-Rated Group 35 | . . 35 35 . Highest-Rated Ally 31 | . . 31 31 . Total Orders . | . . . . . Ally Attacks 13 | . . 13 . . Total Damage 210 | . . 210 . . Kills 4 | . . 4 . . Allies Corrupted . | . . . . . Allies Melted . | . . . . . Intel | -11 -10 -10 -10 -9 ------- Run | Jun Mat Min Exi Min Robot Analysis Total . | . . . . . Derelict Logs Recovered 1 | . . 1 . . Drone Launches . | . . . . . Drone Recoveries . | . . . . . Exploration | -11 -10 -10 -10 -9 ------------- Run | Jun Mat Min Exi Min Turns Passed 3474 | 51 1633 498 1062 230 Spaces Moved 2036 | 43 597 348 883 165 Core 21 | 14 . . . 7 Treads . | . . . . . Legs 2015 | 29 597 348 883 158 Wheels . | . . . . . Hover . | . . . . . Flight . | . . . . . Fastest Speed 50 | 50 120 120 120 100 Average Speed 119 | 97 120 120 120 119 Slowest Speed 120 | 120 120 120 120 120 Overloaded Moves . | . . . . . Propulsion Burnouts . | . . . . . Robots Hopped . | . . . . . Cave-ins Triggered . | . . . . . Exploration Rate (%) 52 | 3 75 53 94 38 Regions Visited 4 Branch Regions 3 Pre-discovered Areas 1 | . . . 1 . Known Exits Taken . | . . . . . Unknown Exits Taken 4 | 1 1 1 1 . Scrap Searched 1 | . . . . 1 Spaces Dug . | . . . . . Terrain Destroyed 83 | . 13 . . 70 Melee . | . . . . . Projectile . | . . . . . AOE 83 | . 13 . . 70 Terrain Rammed . | . . . . . Walls Destroyed . | . . . . . Machines Disabled . | . . . . . Actions | -11 -10 -10 -10 -9 --------- Run | Jun Mat Min Exi Min Total 2944 | 52 1404 416 885 187 Wait 739 | . 680 52 . 7 Move 2032 | 42 596 347 882 165 Hop . | . . . . . Pick Up 35 | 5 25 3 1 1 Fast Attach 1 | . 1 . . . Attach 14 | 5 5 . . 4 Detach . | . . . . . Swap 23 | . 17 3 1 2 Drop 17 | . 13 3 1 . Fire 77 | . 63 6 . 8 Melee 4 | . 4 . . . Ram . | . . . . . Kick 2 | . . 2 . . Crush . | . . . . . Escape Stasis . | . . . . . Rewire . | . . . . . Trap . | . . . . . Miscellaneous . | . . . . . Route ------- -11/Junkyard -10/Materials (discovered 4 exits: [*Mat x2] / [*Min x2]) -10/Mines (discovered 2 exits: [*Mat] / *Exi) -10/Exiles (discovered 2 exits: [*Min x2]) -9/Mines History --------- Turn | Location | Event 5 | -11/Junkyard | Discovered new exit (range 16) 52 | -11/Junkyard | Entered Materials 317 | -10/Materials | Build established: Mutant 487 | -10/Materials | Discovered new exit (range 13) 967 | -10/Materials | Discovered new exit (range 10) 1528 | -10/Materials | Discovered new exit (range 12) 1666 | -10/Materials | Discovered new exit (range 6) 1685 | -10/Materials | Entered Mines 1687 | -10/Mines | Joined a pair of Derelicts in attacking an 0b10 outpost 1754 | -10/Mines | Deemed a non-threat by the Exiles lab entrance 1755 | -10/Mines | Discovered new exit (range 5) 1939 | -10/Mines | Discovered new exit (range 8) 2071 | -10/Mines | Received a Rocket Launcher from a helpful Derelict 2082 | -10/Mines | Learned Materials terminal intel 2183 | -10/Mines | Entered Exiles 2183 | -10/Exiles | Accompanied by 2 allies 2201 | -10/Exiles | Discovered new exit (range 15) 2213 | -10/Exiles | Led the pair of lost Derelicts to a safe place 2263 | -10/Exiles | Met 8R-AWN 2282 | -10/Exiles | Met EX-HEX 2332 | -10/Exiles | Met EX-DEC 2385 | -10/Exiles | Visited The Gauntlet 2590 | -10/Exiles | Learned location of Zion (-6) 2644 | -10/Exiles | Discovered new exit (range 14) 2716 | -10/Exiles | Met EX-BIN 2737 | -10/Exiles | Aligned with FarCom system 2738 | -10/Exiles | Given EX-Vault access code 3121 | -10/Exiles | Opened EX-Vault 3126 | -10/Exiles | Found Prototype Device 3127 | -10/Exiles | Identified Trap Reconfigurator 3158 | -10/Exiles | Warned to stay clear of 0b10 Research branches 3173 | -10/Exiles | Exiles lab attacked by MAIN.C 3245 | -10/Exiles | Left Exiles lab with Trap Reconfigurator 3245 | -10/Exiles | Entered Mines 3267 | -9/Mines | Found a hidden stash of uninstalled traps 3402 | -9/Mines | Assembled infested the area 3407 | -9/Mines | Assisted by a Guerilla fighting off Assembled 3442 | -9/Mines | Core integrity fell below 50% 3454 | -9/Mines | Core integrity fell below 20% 3462 | -9/Mines | Destroyed 15 combat bots 3475 | -9/Mines | Destroyed by D-53 Grenadier with Mini Grenade Launcher Last Messages --------------- a huge margin, due to how they are calculated by Valve. 03434_ as-93400 destroyed. 03434_ as-96511 destroyed. 03436_ as-51089 destroyed. 03438_ Aluminum Leg destroyed. 03439_ as-51989 destroyed. 03439_ 5L-KAT destroyed. 03440_ The unstable cave ceiling collapses. 03441_ as-84017 destroyed. 03441_ as-29132 destroyed. [Achievement: Exterminator] 03442_ The unstable cave ceiling collapses. 03443_ Rocket Launcher destroyed. 03445_ as-14872 destroyed. 03445_ Aluminum Leg destroyed. 03447_ The unstable cave ceiling collapses. 03448_ Acquired Mak. Axe. 03454_ Aluminum Leg destroyed. 03457_ The unstable cave ceiling collapses. 03474_ Core Extractor disabled. Map ----- +----------------------------------------------------+ | | | | | | | | | | | ?????????????????????????????????????????? | | ?????????????????????????????????????????? | | ?????????????????????????????????????????? | | ?????????????????????????????????????????? | | ?????????????????????????????????????????? | | ?????????????????????????????????????????? | | ?????????????????????????????????????????? | | ?????????????????????????????????????????? | | ?????????????????????????????????????????? | | ?????????????????????????????????????????? | | ?????????????????????????????????????????? | | ?????????????????????????????????????????? | | ?????????????????????????????????????????? | | ?????????????????????????????????????????? | | ?????????????????????????????????????????? | | ??????????#########??####????????????????? | | ??????????# # #?## ##??????????????? | | ?????????## #### ##?????????????? | | ??????# ##??#####?????? | | # #???## ### #?## ###???? | | ### #?# "" @ #?# ##??? | | # #?# " d ##?# """" #??? | | #?# d #### """" #??? | | = =% ##?# """" #??? | | % % ! ##??## #???? | | " # ##????## ###### ##???? | | % # # #??????# ##???## ##???? | | #?# ##??????# #????# #???? | | %#???## # #???????# #????# #???? | | ??????## ######???????# #????# #???? | | ???????#??????????????# #????# ##??? | | ??????????????????????# #????# #??? | | ??????????????????????# #????# #?? | | ??????????????????????# #????## #? | | ??????????????????????# #???#### #? | | ??????????????????????# #??# ### ##? | | ??????????????????????# ### ### ##?? | | ??????????????????????# #?######??? | | ??????????????????????##### ##?????????? | | ?????????????????????????## #??????????? | | ?????????????????????????# #??????????? | | ?????????????????????????# #??????????? | | ?????????????????????????## ##??????????? | | ??????????????????????????# ##???????????? | | ??????????????????????##### #????????????? | +----------------------------------------------------+ Best States ------------- Heat Dissipation 39 Energy Generation 14 Energy Capacity 250 Matter Stores 300 Matter Capacity 300 Sight Range 16 Terrain Scan Range 14 Terrain Scan Density 85 Armor Coverage 150 Evasion (%) 55 Targeting Accuracy 6 Item Schematics ----------------- None Robot Schematics ------------------ None Fabricated ------------ Nothing Alien Tech Used ----------------- None Achievements -------------- Exterminator Quick And Dirty Challenges ------------ None Game ------ Seed GrapheneWaveReactor Manual? 0 Play Time 00:39:59 Cumulative 17.1 hours Start 2023.09.20 @ 10:03:01 End 2023.09.20 @ 10:43:56 Sessions 1 Manual Loads 0 Difficulty Rogue Special Mode None Game No. 23 Rogue 23 Adventurer 0 Explorer 0 Win Type - Total 0 Types 0/0/0/0/0/0/0/0/0 Lore% 17 Gallery% 26 Achievement% 20 Wizard Run 0 Options --------- ASCII 0 Keyboard 0 Movement Mouse Keybinds 0 Fullscreen 1 Font 16/Terminus Map View 76x50 Tactical HUD 1 Map Filters NONE Filters NONE Steam 1 RUN: a89a0d5d-ccc4-4364-975e-b7bb05f7ed41